bitfinex/quotes_BTCUSD_20240703
["timestamp","ask_amount","ask_price","bid_price","bid_amount"]
[1720015894142,1.66015233,60561.0,60545.0,0.08015582]
[1720015894143,0.3,60560.0,60545.0,0.08015582]
[1720015894346,0.2363,60551.0,60545.0,0.08015582]
[1720015894471,0.1,60550.0,60545.0,0.08015582]
[1720015894880,0.1,60550.0,60545.0,0.16638181]
[1720015895136,0.1,60550.0,60549.0,0.14622599]
[1720015895340,0.1,60550.0,60549.0,0.08622599]
[1720015895481,0.1,60550.0,60549.0,0.14622599]
[1720015895688,0.1,60555.0,60548.0,0.08622599]
[1720015895877,0.1,60555.0,60553.0,0.08015582]
[1720015898072,0.0999,60555.0,60553.0,0.08015582]
[1720015899333,0.04775479,60556.0,60555.0,0.08622599]
[1720015899679,0.2363,60561.0,60555.0,0.08622599]
[1720015899882,0.02239867,60560.0,60555.0,0.08622599]
[1720015900053,0.02239867,60559.0,60555.0,0.08622599]
[1720015900286,0.02239867,60559.0,60549.0,0.3027]
[1720015900287,0.2363,60556.0,60545.0,0.08622599]
[1720015900490,0.12240189,60555.0,60546.0,0.16638181]
[1720015900675,0.1,60555.0,60546.0,0.08015582]
[1720015900882,0.02290016,60554.0,60546.0,0.08015582]
[1720015901089,0.1,60555.0,60546.0,0.08015582]
[1720015901294,0.1,60555.0,60553.0,0.08015582]
[1720015901444,0.02290067,60554.0,60553.0,0.08015582]
[1720015902002,0.02290067,60554.0,60546.0,0.08015582]
[1720015902159,0.5731,60553.0,60546.0,0.08015582]
[1720015902481,0.2363,60551.0,60546.0,0.08015582]
[1720015902657,0.1,60550.0,60546.0,0.08015582]
[1720015904015,0.1,60552.0,60546.0,0.08015582]
[1720015904654,0.1,60552.0,60538.0,0.08015582]
[1720015904655,0.2363,60548.0,60538.0,0.08015582]
[1720015904855,0.2363,60548.0,60539.0,0.08622599]
[1720015905062,0.2363,60541.0,60538.0,0.08015582]
[1720015905266,0.1,60540.0,60538.0,0.08015582]
[1720015905839,0.04501143,60539.0,60538.0,0.08015582]
[1720015906387,0.04501143,60539.0,60538.0,0.08315582]
[1720015906818,0.04501143,60539.0,60538.0,0.08015582]
[1720015907388,0.04491143,60539.0,60538.0,0.08015582]
[1720015907590,0.05700473,60539.0,60538.0,0.08015582]
[1720015908253,0.05700473,60539.0,60538.0,0.08515582]
[1720015908459,0.30769903,60539.0,60538.0,0.007]
[1720015908708,0.15700473,60539.0,60538.0,0.007]
[1720015909061,0.1103057,60539.0,60538.0,0.007]
[1720015909266,0.1517285,60539.0,60538.0,0.007]
[1720015909471,0.1103057,60539.0,60538.0,0.007]
[1720015909737,0.15172728,60539.0,60538.0,0.007]
[1720015910774,0.1,60539.0,60538.0,0.0561448]
[1720015910977,0.1103053,60539.0,60538.0,0.0561448]
[1720015911219,0.1,60542.0,60538.0,0.007]
[1720015911381,0.21257654,60541.0,60538.0,0.007]
[1720015911585,0.2416,60539.0,60538.0,0.007]
[1720015911787,0.39387774,60539.0,60538.0,0.007]
[1720015911993,0.39377774,60539.0,60538.0,0.007]
[1720015912420,0.39377774,60539.0,60538.0,0.005]
[1720015913332,0.39377774,60539.0,60538.0,0.007]
[1720015913532,0.55407654,60539.0,60538.0,0.002]
[1720015913968,0.57017425,60539.0,60534.0,0.009185]
[1720015914170,0.2363,60535.0,60532.0,0.000924]
[1720015914378,0.2363,60535.0,60531.0,0.002]
[1720015914379,0.3262,60533.0,60531.0,0.002]
[1720015914558,0.32868729,60532.0,60531.0,0.002]
[1720015914754,0.90744929,60532.0,60526.0,0.04916323]
[1720015914975,0.2415,60530.0,60523.0,0.04916323]
[1720015915186,0.2415,60530.0,60522.0,0.04916323]
[1720015915187,0.2363,60527.0,60522.0,0.04916323]
[1720015915395,0.2363,60523.0,60521.0,0.04917894]
[1720015915593,0.11491708,60522.0,60521.0,0.1599944]
[1720015915796,0.11481708,60522.0,60521.0,0.2199944]
[1720015915956,0.11481708,60522.0,60521.0,0.4847944]
[1720015916155,0.11481708,60522.0,60521.0,0.41102599]
[1720015916363,0.11471708,60522.0,60521.0,0.74032599]
[1720015916986,0.1,60527.0,60524.0,0.08622599]
[1720015917235,0.1,60527.0,60526.0,0.07372449]
[1720015917457,0.1,60527.0,60525.0,0.09829932]
[1720015917919,0.2618,60526.0,60524.0,0.09829932]
[1720015918133,0.2618,60526.0,60523.0,0.09829932]
[1720015918134,0.1,60525.0,60523.0,0.09829932]
[1720015918347,0.2363,60524.0,60523.0,0.07372784]
[1720015918571,0.3363,60524.0,60522.0,0.09829932]
[1720015918790,0.1,60523.0,60522.0,0.09829932]
[1720015919402,0.1,60523.0,60522.0,0.0737126]
[1720015919826,0.3494,60523.0,60522.0,0.0737126]
[1720015920072,0.3494,60523.0,60519.0,0.13207015]
[1720015920075,0.3053,60522.0,60519.0,0.009196]
[1720015920284,0.1,60523.0,60521.0,0.08015582]
[1720015920497,0.2363,60522.0,60521.0,0.08015582]
[1720015920697,0.3363,60522.0,60519.0,0.009196]
[1720015920903,0.0999,60521.0,60519.0,0.05837798]
[1720015921102,0.16413696,60521.0,60519.0,0.05837798]
[1720015921461,0.16403696,60521.0,60519.0,0.05837798]
[1720015921693,0.4843395,60520.0,60519.0,0.05837798]
[1720015921894,0.619,60518.0,60514.0,0.12295495]
[1720015922093,0.2363,60515.0,60514.0,0.10302742]
[1720015922258,1.6220458,60515.0,60514.0,0.10302742]
[1720015922456,1.6420468,60515.0,60514.0,0.10302742]
[1720015922663,0.7305988,60515.0,60508.0,0.08622599]
[1720015922887,0.2363,60515.0,60513.0,0.16638181]
[1720015923246,0.5616,60514.0,60512.0,0.009185]
[1720015923380,0.3965988,60515.0,60512.0,0.009185]
[1720015923572,0.2363,60515.0,60512.0,0.009185]
[1720015923773,0.1,60514.0,60512.0,0.009185]
[1720015923974,0.1,60514.0,60513.0,0.14622599]
[1720015924933,0.01810746,60515.0,60514.0,0.14622599]
[1720015925339,0.005,60515.0,60514.0,0.14622599]
[1720015925486,0.005,60515.0,60514.0,0.08622599]
[1720015925668,0.01880348,60519.0,60518.0,0.08622599]
[1720015925868,0.06423696,60521.0,60520.0,0.14622599]
[1720015926076,0.2363,60529.0,60521.0,0.08622599]
[1720015926438,0.2363,60529.0,60525.0,0.08622599]
[1720015926811,0.2363,60529.0,60527.0,0.08622599]
[1720015927010,0.2363,60529.0,60518.0,0.08015582]
[1720015927011,0.2363,60529.0,60525.0,0.08622599]
[1720015927435,0.2363,60529.0,60527.0,0.08622599]
[1720015927676,0.2363,60529.0,60528.0,0.08622599]
[1720015927874,0.2362,60529.0,60526.0,0.08622599]
[1720015928189,0.2362,60529.0,60525.0,0.08622599]
[1720015928385,0.18868923,60528.0,60526.0,0.08622599]
[1720015928516,0.18868923,60528.0,60527.0,0.08622599]
[1720015928926,0.18868923,60528.0,60527.0,0.14622599]
[1720015929693,0.1,60528.0,60527.0,0.14622599]
[1720015930370,0.008,60528.0,60527.0,0.14722599]
[1720015930578,0.1,60533.0,60527.0,0.08622599]
[1720015931026,0.2363,60529.0,60526.0,0.08622599]
[1720015931302,0.5624,60527.0,60525.0,0.08622599]
[1720015931508,0.1,60526.0,60525.0,0.08622599]
[1720015931679,0.1,60526.0,60522.0,0.08622599]
[1720015932008,0.2363,60523.0,60522.0,0.14622599]
[1720015932211,0.2363,60523.0,60522.0,0.08622599]
[1720015932419,0.2362,60523.0,60515.0,0.08622599]
[1720015932624,0.4802,60523.0,60515.0,0.08622599]
[1720015932961,0.2363,60518.0,60517.0,0.14622599]
[1720015933373,0.32435239,60518.0,60517.0,0.14622599]
[1720015934037,0.42435239,60518.0,60517.0,0.14622599]
[1720015934442,0.42435239,60518.0,60517.0,0.15222599]
[1720015935104,0.18805239,60518.0,60517.0,0.15222599]
[1720015935310,0.08805239,60518.0,60517.0,0.006]
[1720015935511,0.32435239,60518.0,60517.0,0.006]
[1720015935802,0.42435239,60518.0,60517.0,0.006]
[1720015935939,0.42435239,60518.0,60517.0,0.10122599]
[1720015935940,0.42525239,60518.0,60517.0,0.10122599]
[1720015936144,0.18905239,60518.0,60517.0,0.24138181]
[1720015936345,0.18905239,60518.0,60517.0,0.23538181]
[1720015936599,0.18905239,60518.0,60517.0,0.16638181]
[1720015936600,0.18805239,60518.0,60517.0,0.16638181]
[1720015936801,0.09305239,60518.0,60517.0,0.22638181]
[1720015937206,0.10625143,60518.0,60517.0,0.08015582]
[1720015937412,0.20628421,60518.0,60517.0,0.08015582]
[1720015937820,0.21128421,60518.0,60517.0,0.08015582]
[1720015938022,0.21128421,60518.0,60517.0,0.16638181]
[1720015938237,0.21128421,60518.0,60517.0,0.08015582]
[1720015938425,0.21128421,60518.0,60517.0,0.22638181]
[1720015938566,0.21128421,60518.0,60515.0,0.08622599]
[1720015938800,0.18808517,60517.0,60515.0,0.08622599]
[1720015939039,0.08808517,60516.0,60515.0,0.14622599]
[1720015940003,0.08798517,60516.0,60515.0,0.14622599]
[1720015940234,0.08798517,60516.0,60515.0,0.08622599]
[1720015940638,0.1,60517.0,60515.0,0.08722599]
[1720015940837,0.01819904,60518.0,60516.0,0.08622599]
[1720015941014,0.01819904,60518.0,60517.0,0.22638181]
[1720015941220,0.02499316,60518.0,60517.0,0.22638181]
[1720015942397,0.02499316,60518.0,60517.0,0.16638181]
[1720015943035,0.02499316,60518.0,60514.0,0.08622599]
[1720015943234,0.02499316,60517.0,60512.0,0.009185]
[1720015943438,0.02499316,60516.0,60512.0,0.009185]
[1720015943636,0.02499316,60515.0,60512.0,0.009185]
[1720015943859,0.003,60517.0,60512.0,0.009185]
[1720015944101,0.2363,60513.0,60512.0,0.009185]
[1720015944305,0.36121569,60513.0,60512.0,0.009185]
[1720015945271,0.36121569,60513.0,60512.0,0.0043176]
[1720015946673,0.36111569,60513.0,60512.0,0.0043176]
[1720015946882,0.36111569,60513.0,60512.0,0.0093176]
[1720015947092,1.08031449,60513.0,60512.0,0.0093176]
[1720015947306,0.46872617,60513.0,60512.0,0.0093176]
[1720015947524,0.46872617,60513.0,60512.0,0.08947342]
[1720015947943,0.53218632,60513.0,60512.0,0.08947342]
[1720015948151,0.53218632,60513.0,60512.0,0.09147342]
[1720015948363,0.53218632,60513.0,60512.0,0.08970799]
[1720015948504,0.1888797,60513.0,60512.0,0.23393398]
[1720015948710,0.1888797,60513.0,60512.0,0.23493398]
[1720015948711,0.0888797,60513.0,60512.0,0.23493398]
[1720015948914,0.0888797,60513.0,60512.0,0.22993398]
[1720015949122,0.0888797,60513.0,60512.0,0.08370799]
[1720015949383,0.0888797,60513.0,60512.0,0.08670799]
[1720015949549,0.0887797,60513.0,60512.0,0.08670799]
[1720015949745,0.0887797,60513.0,60512.0,0.23293398]
[1720015950270,0.0887797,60513.0,60512.0,0.08670799]
[1720015950459,0.06328514,60513.0,60512.0,0.08670799]
[1720015951006,0.08192408,60513.0,60512.0,0.08670799]
[1720015951159,0.80482288,60513.0,60512.0,0.00655217]
[1720015951506,0.90482288,60513.0,60512.0,0.00655217]
[1720015951717,1.01179233,60513.0,60512.0,0.00655217]
[1720015952669,0.28889353,60513.0,60512.0,0.00655217]
[1720015953102,0.18192408,60513.0,60512.0,0.00655217]
[1720015953659,0.11863894,60513.0,60512.0,0.00655217]
[1720015953865,0.01863894,60513.0,60512.0,0.08670799]
[1720015954080,0.16250192,60513.0,60512.0,0.23293398]
[1720015954288,0.06248798,60513.0,60512.0,0.87329459]
[1720015954494,0.06248798,60513.0,60512.0,1.0882737]
[1720015954705,0.01834459,60515.0,60512.0,1.0882737]
[1720015954706,0.01834459,60515.0,60514.0,0.74232599]
[1720015954902,0.06,60530.0,60523.0,0.08622599]
[1720015955103,0.71723494,60527.0,60524.0,0.08015582]
[1720015955315,0.06275998,60526.0,60524.0,0.08015582]
[1720015955927,0.06275998,60526.0,60521.0,0.08622599]
[1720015956557,0.2363,60522.0,60519.0,0.08622599]
[1720015956751,0.1,60521.0,60518.0,0.08622599]
[1720015956963,0.05251474,60520.0,60517.0,0.0001]
[1720015957168,0.35861474,60519.0,60517.0,0.0001]
[1720015957365,0.15251474,60518.0,60517.0,0.0001]
[1720015958211,0.15251474,60518.0,60517.0,0.14632599]
[1720015958410,0.05251474,60518.0,60517.0,0.08932599]
[1720015958610,0.1,60518.0,60517.0,0.22948181]
[1720015958873,0.1,60518.0,60517.0,0.0031]
[1720015958874,0.15251474,60518.0,60517.0,0.0031]
[1720015959130,0.15251474,60518.0,60517.0,0.08932599]
[1720015959340,0.15251474,60518.0,60517.0,0.16948181]
[1720015959541,0.17239968,60518.0,60517.0,0.22948181]
[1720015959739,0.07239968,60518.0,60517.0,0.22948181]
[1720015959978,0.01988494,60518.0,60517.0,0.08325582]
[1720015960185,0.07809333,60518.0,60517.0,0.0031]
[1720015960509,0.07809333,60518.0,60517.0,0.0001]
[1720015960712,0.07809333,60518.0,60517.0,0.0051]
[1720015960877,0.09658242,60518.0,60517.0,0.0051]
[1720015961078,0.09658242,60518.0,60517.0,0.0001]
[1720015961280,0.09958242,60518.0,60517.0,0.08632599]
[1720015961599,0.09758242,60518.0,60517.0,0.23348181]
[1720015961756,0.09758242,60518.0,60517.0,0.08725582]
[1720015961964,0.10058242,60518.0,60517.0,0.08725582]
[1720015962185,0.20058242,60518.0,60517.0,0.08725582]
[1720015962591,0.20058242,60518.0,60517.0,0.0071]
[1720015962792,0.30310379,60518.0,60517.0,0.0071]
[1720015963488,0.86620509,60518.0,60517.0,0.0071]
[1720015963666,0.86520509,60518.0,60517.0,0.0001]
[1720015963868,1.12993309,60518.0,60517.0,0.0001]
[1720015964078,1.07343309,60518.0,60517.0,0.0001]
[1720015964276,1.21363309,60518.0,60517.0,0.0001]
[1720015964500,1.10250509,60518.0,60517.0,0.0001]
[1720015964657,1.10250509,60518.0,60517.0,0.14632599]
[1720015964658,0.30320509,60518.0,60517.0,0.14632599]
[1720015965500,0.2006808,60518.0,60517.0,0.14632599]
[1720015966108,0.2006808,60518.0,60517.0,0.08632599]
[1720015966358,0.2006808,60518.0,60517.0,0.14632599]
[1720015966554,0.12248909,60518.0,60517.0,0.14632599]
[1720015966806,0.11380338,60518.0,60517.0,0.08632599]
[1720015967140,0.12248909,60518.0,60517.0,0.08632599]
[1720015967348,0.21380317,60518.0,60517.0,0.08632599]
[1720015967514,0.69930317,60518.0,60517.0,0.0001]
[1720015967944,1.11129956,60518.0,60517.0,0.0001]
[1720015968283,1.11229956,60518.0,60517.0,0.0001]
[1720015968489,1.27259836,60518.0,60517.0,0.0001]
[1720015968687,1.50249936,60518.0,60517.0,0.0001]
[1720015968914,1.50149936,60518.0,60517.0,0.0001]
[1720015969091,1.50149936,60518.0,60512.0,0.00255217]
[1720015969092,1.66186242,60518.0,60512.0,0.00255217]
[1720015969459,0.2363,60513.0,60512.0,0.00255217]
[1720015969759,0.2363,60513.0,60511.0,0.011185]
[1720015969760,2.0923528,60513.0,60511.0,1e-08]
[1720015970038,2.0923528,60513.0,60504.0,0.08015582]
[1720015970039,0.46482458,60512.0,60504.0,0.08015582]
[1720015970238,0.1,60512.0,60511.0,0.08015582]
[1720015970469,0.35900928,60512.0,60504.0,0.08015582]
[1720015970640,0.35900928,60512.0,60504.0,0.16638181]
[1720015970641,0.2363,60507.0,60504.0,0.16638181]
[1720015970839,0.19230928,60506.0,60505.0,0.15542199]
[1720015971041,0.19230928,60506.0,60505.0,0.009196]
[1720015971278,0.19230928,60506.0,60505.0,0.15542199]
[1720015971895,0.18944489,60506.0,60505.0,0.15542199]
[1720015972110,0.18944489,60506.0,60505.0,0.010196]
[1720015972314,0.18944489,60506.0,60505.0,0.009196]
[1720015972520,0.19344489,60506.0,60505.0,0.009196]
[1720015972763,0.20044489,60506.0,60505.0,0.010196]
[1720015973194,0.111,60506.0,60505.0,0.010196]
[1720015973394,0.17614196,60506.0,60505.0,0.010196]
[1720015973829,0.17329017,60506.0,60505.0,0.010196]
[1720015974224,0.17329017,60506.0,60505.0,0.15642199]
[1720015974769,0.07614196,60506.0,60505.0,0.15642199]
[1720015975280,0.07604196,60506.0,60505.0,0.87002079]
[1720015975486,0.09514962,60506.0,60505.0,0.70972199]
[1720015976332,0.08008929,60506.0,60505.0,0.70972199]
[1720015976580,0.08008929,60506.0,60505.0,0.71272199]
[1720015977213,0.08008929,60506.0,60505.0,0.70972199]
[1720015977410,0.08008929,60506.0,60505.0,0.71172199]
[1720015977856,0.07308929,60506.0,60505.0,0.71072199]
[1720015978332,0.07708929,60506.0,60505.0,0.15742199]
[1720015979006,0.07308929,60506.0,60505.0,0.15752199]
[1720015979450,0.07308929,60506.0,60505.0,0.15552199]
[1720015979451,0.01910766,60506.0,60505.0,0.15552199]
[1720015979660,0.05979028,60506.0,60505.0,0.15552199]
[1720015979885,0.1,60512.0,60505.0,0.15752199]
[1720015980084,0.1,60512.0,60511.0,0.08622599]
[1720015980286,0.1,60512.0,60511.0,0.14622599]
[1720015980501,0.15929194,60512.0,60509.0,0.08015582]
[1720015980713,0.05929194,60511.0,60509.0,0.08015582]
[1720015980886,0.05929194,60511.0,60510.0,0.14622599]
[1720015981913,0.08176246,60511.0,60510.0,0.14622599]
[1720015982311,0.08176246,60511.0,60510.0,0.40372599]
[1720015982515,0.08176246,60511.0,60510.0,0.43372599]
[1720015982881,0.08960246,60511.0,60510.0,0.40472599]
[1720015983297,0.08960246,60511.0,60510.0,0.17722599]
[1720015983499,0.08960246,60511.0,60510.0,0.59712479]
[1720015983703,0.08960246,60511.0,60510.0,0.91602479]
[1720015983910,0.03031052,60511.0,60510.0,0.91602479]
[1720015984119,0.03531052,60511.0,60510.0,0.9655288]
[1720015984321,0.03531052,60511.0,60510.0,0.91602479]
[1720015984858,0.03031052,60511.0,60510.0,0.91602479]
[1720015985064,0.02331052,60511.0,60510.0,0.91502479]
[1720015985269,0.02631052,60511.0,60510.0,0.91502479]
[1720015985464,0.03231052,60511.0,60510.0,0.91502479]
[1720015985969,0.00984,60511.0,60510.0,0.91502479]
[1720015986892,0.00984,60511.0,60510.0,1.21502479]
[1720015987097,0.02322096,60511.0,60510.0,1.21502479]
[1720015987297,0.00984,60511.0,60510.0,1.21502479]
[1720015987672,0.00684,60511.0,60510.0,1.51502479]
[1720015987872,0.2637,60538.0,60510.0,1.51502479]
[1720015987873,0.01847908,60527.0,60526.0,0.14622599]
[1720015988193,0.02985584,60538.0,60529.0,0.14622599]
[1720015988354,0.02985584,60538.0,60537.0,0.14622599]
[1720015988555,0.0634451,60538.0,60537.0,0.08622599]
[1720015988760,0.1296451,60538.0,60537.0,0.14622599]
[1720015988954,0.0634451,60538.0,60536.0,0.08622599]
[1720015989213,0.0634451,60537.0,60536.0,0.08622599]
[1720015989452,0.01238778,60537.0,60536.0,0.08622599]
[1720015989859,0.01238778,60537.0,60536.0,0.08069966]
[1720015990013,0.01238778,60537.0,60518.0,0.0741764]
[1720015990014,0.30010924,60537.0,60533.0,0.07969966]
[1720015990217,0.05123526,60536.0,60533.0,0.07969966]
[1720015990398,0.01257912,60535.0,60533.0,0.07969966]
[1720015990599,0.06381438,60535.0,60534.0,0.13969966]
[1720015990802,0.16381438,60535.0,60534.0,0.13969966]
[1720015991719,0.16381438,60535.0,60533.0,0.07969966]
[1720015991923,0.16381438,60534.0,60533.0,0.07969966]
[1720015992169,0.06381438,60534.0,60533.0,0.07969966]
[1720015992664,0.06381438,60534.0,60533.0,0.08069966]
[1720015992883,0.5747,60533.0,60529.0,0.0002]
[1720015993088,0.06381438,60532.0,60529.0,0.07989966]
[1720015993296,0.08752601,60531.0,60530.0,0.13969966]
[1720015993455,0.18752601,60531.0,60530.0,0.07969966]
[1720015993654,0.1,60531.0,60530.0,0.07969966]
[1720015993858,0.1875173,60531.0,60530.0,0.13969966]
[1720015994244,0.12471621,60531.0,60530.0,0.13969966]
[1720015994446,0.02471621,60531.0,60530.0,0.13969966]
[1720015994649,0.1,60538.0,60532.0,0.07969966]
[1720015994852,0.08712133,60537.0,60532.0,0.07969966]
[1720015995035,0.2363,60534.0,60530.0,0.07969966]
[1720015995236,0.2363,60534.0,60529.0,0.0002]
[1720015995237,0.73692133,60533.0,60529.0,0.0002]
[1720015995481,0.08712133,60532.0,60529.0,0.0002]
[1720015995678,0.08712133,60531.0,60529.0,0.0012]
[1720015995887,0.08712133,60530.0,60529.0,0.0012]
[1720015996087,0.08712133,60530.0,60529.0,0.0002]
[1720015997107,0.40425033,60530.0,60529.0,0.0012]
[1720015997316,1.35550946,60530.0,60529.0,0.0012]
[1720015997508,1.35550946,60530.0,60529.0,0.0002]
[1720015998130,0.3213,60528.0,60515.0,0.07969966]
[1720015998330,0.2363,60517.0,60516.0,0.07969966]
[1720015998501,0.42342133,60517.0,60514.0,0.07969966]
[1720015998703,0.12451384,60516.0,60514.0,0.07969966]
[1720015999076,0.12451384,60516.0,60505.0,0.009196]
[1720015999077,0.2406,60514.0,60511.0,0.07969966]
[1720015999265,0.08712602,60513.0,60511.0,0.07969966]
[1720015999525,0.08712602,60512.0,60511.0,0.07969966]
[1720015999727,0.1,60513.0,60512.0,0.07969966]
[1720015999899,0.16249251,60513.0,60512.0,0.07969966]
[1720016000105,0.18687073,60513.0,60512.0,0.21985548]
[1720016000307,0.12437822,60513.0,60512.0,0.21985548]
[1720016000931,0.02937822,60513.0,60512.0,0.21985548]
[1720016001226,0.12937822,60513.0,60512.0,0.38015428]
[1720016001427,0.12937822,60513.0,60512.0,0.41015428]
[1720016002013,0.13237822,60513.0,60512.0,0.38015428]
[1720016002168,0.03237822,60513.0,60512.0,0.38015428]
[1720016002370,0.03237822,60513.0,60512.0,0.41015428]
[1720016002371,0.02737822,60513.0,60512.0,0.41015428]
[1720016002827,0.03337822,60513.0,60512.0,0.41115428]
[1720016003109,0.03337822,60513.0,60512.0,0.38115428]
[1720016003339,0.03337822,60513.0,60512.0,0.41115428]
[1720016003514,0.009,60513.0,60512.0,0.41115428]
[1720016003873,0.0089,60513.0,60512.0,0.41115428]
[1720016004080,0.1,60525.0,60524.0,0.13969966]
[1720016004706,0.1,60526.0,60525.0,0.07969966]
[1720016004902,0.1,60526.0,60522.0,0.07969966]
[1720016005406,0.01,60525.0,60522.0,0.07969966]
[1720016005795,0.1,60526.0,60522.0,0.07969966]
[1720016006348,0.1,60526.0,60523.0,0.07969966]
[1720016006349,0.08167423,60525.0,60523.0,0.07969966]
[1720016006565,0.1,60526.0,60524.0,0.07969966]
[1720016006751,0.1,60526.0,60525.0,0.07969966]
[1720016006896,0.18114381,60526.0,60525.0,0.13969966]
[1720016007105,0.09014381,60526.0,60525.0,0.13969966]
[1720016007551,0.02144877,60526.0,60525.0,0.13969966]
[1720016007724,0.03144877,60526.0,60525.0,0.32908952]
[1720016007930,0.04044877,60526.0,60525.0,0.32908952]
[1720016008316,0.03044877,60526.0,60525.0,0.32908952]
[1720016008800,0.04044877,60526.0,60525.0,0.32908952]
[1720016009273,0.04004446,60526.0,60525.0,0.32908952]
[1720016009803,0.04004426,60526.0,60525.0,0.32908952]
[1720016010001,0.03104426,60526.0,60525.0,0.32908952]
[1720016010202,0.03104426,60526.0,60525.0,0.33008952]
[1720016010412,0.04104426,60526.0,60525.0,0.33008952]
[1720016011578,0.04104426,60526.0,60525.0,0.32678544]
[1720016012306,0.03104426,60526.0,60525.0,0.32678544]
[1720016012746,0.02701957,60526.0,60525.0,0.32678544]
[1720016013000,0.02701957,60526.0,60525.0,0.29678544]
[1720016013288,0.02701957,60526.0,60525.0,0.29578544]
[1720016013289,0.02401957,60526.0,60525.0,0.29578544]
[1720016014025,0.02358111,60526.0,60525.0,0.29578544]
[1720016014254,0.03258111,60526.0,60525.0,0.29678544]
[1720016016022,0.01556154,60526.0,60525.0,0.29678544]
[1720016016232,0.03204344,60526.0,60525.0,0.32678544]
[1720016017473,0.02304344,60526.0,60525.0,0.32578544]
[1720016017878,0.02404344,60526.0,60525.0,0.64898544]
[1720016018303,0.02404344,60526.0,60525.0,0.89088544]
[1720016018473,0.02488344,60526.0,60525.0,1.19088544]
[1720016018677,0.02388344,60526.0,60525.0,1.18388544]
[1720016018903,0.00740154,60526.0,60525.0,1.18388544]
[1720016019109,0.00184,60526.0,60525.0,1.19388544]
[1720016019304,0.00184,60526.0,60525.0,1.18388544]
[1720016019305,0.00084,60526.0,60525.0,1.18388544]
[1720016019505,0.00084,60526.0,60525.0,1.25781027]
[1720016019867,0.00084,60526.0,60525.0,1.25784122]
[1720016020055,0.00084,60526.0,60525.0,1.48398544]
[1720016020302,0.00184,60526.0,60525.0,1.58659315]
[1720016020477,0.00184,60526.0,60525.0,1.63424508]
[1720016020701,0.00184,60526.0,60525.0,1.51098544]
[1720016021037,0.00184,60526.0,60525.0,1.71108544]
[1720016021446,0.48093494,60545.0,60544.0,0.23348664]
[1720016021686,0.49536123,60545.0,60544.0,0.39378544]
[1720016021902,0.01442629,60545.0,60544.0,0.39378544]
[1720016022339,0.01891103,60546.0,60544.0,0.39378544]
[1720016022588,0.01891103,60546.0,60545.0,0.29908826]
[1720016022763,0.1,60553.0,60552.0,0.13548664]
[1720016022996,0.1670021,60553.0,60552.0,0.13548664]
[1720016023208,0.01421572,60553.0,60552.0,0.13548664]
[1720016025573,0.008,60553.0,60552.0,0.13648664]
[1720016025776,0.01360884,60553.0,60552.0,0.13548664]
[1720016026178,0.01760884,60553.0,60552.0,0.13548664]
[1720016026594,0.01360884,60553.0,60552.0,0.13548664]
[1720016026795,0.01560884,60553.0,60552.0,0.13548664]
[1720016026979,0.01960884,60553.0,60552.0,0.13548664]
[1720016028073,0.01960884,60553.0,60552.0,0.07548664]
[1720016028274,0.01960884,60553.0,60552.0,0.13548664]
[1720016029144,0.01994393,60553.0,60551.0,0.04924838]
[1720016029348,0.01994393,60553.0,60549.0,0.12473502]
[1720016029349,0.57154393,60552.0,60549.0,0.12473502]
[1720016029490,0.11394393,60551.0,60549.0,0.12473502]
[1720016029690,0.01394393,60550.0,60549.0,0.13548664]
[1720016031331,0.01394393,60550.0,60549.0,0.13748664]
[1720016031538,0.36441061,60552.0,60551.0,0.13548664]
[1720016033219,0.36441061,60552.0,60551.0,0.13648664]
[1720016033439,0.37141061,60552.0,60551.0,0.13648664]
[1720016033647,0.47141061,60552.0,60551.0,0.13648664]
[1720016033990,0.46441061,60552.0,60551.0,0.13548664]
[1720016034197,0.47141061,60552.0,60551.0,0.13648664]
[1720016034621,0.47841061,60552.0,60551.0,0.13748664]
[1720016034796,0.47841061,60552.0,60551.0,0.07748664]
[1720016035022,0.47841061,60552.0,60551.0,0.13748664]
[1720016035223,0.47841061,60552.0,60551.0,0.07758664]
[1720016036122,0.47841061,60552.0,60551.0,0.13758664]
[1720016037789,0.47841061,60552.0,60551.0,0.13768664]
[1720016038443,0.47841061,60552.0,60551.0,0.0022]
[1720016039067,0.47841061,60552.0,60551.0,0.13768664]
[1720016039269,0.42841061,60552.0,60551.0,0.13768664]
[1720016039638,0.48386762,60552.0,60551.0,0.13768664]
[1720016041579,0.50165185,60552.0,60551.0,0.13768664]
[1720016043120,0.18724124,60552.0,60551.0,0.13768664]
[1720016043265,0.08724124,60552.0,60551.0,0.13768664]
[1720016045042,0.014,60552.0,60551.0,0.32798544]
[1720016045230,0.03146608,60552.0,60551.0,0.32798544]
[1720016045433,0.014,60552.0,60551.0,0.32798544]
[1720016045629,0.014,60552.0,60551.0,1.59732822]
[1720016045630,0.03147446,60552.0,60551.0,1.59732822]
[1720016045852,0.03147446,60552.0,60551.0,1.75978544]
[1720016045853,0.014,60552.0,60551.0,1.75978544]
[1720016046054,0.014,60552.0,60551.0,1.95878544]
[1720016046055,0.007,60552.0,60551.0,1.95878544]
[1720016047250,0.007,60552.0,60551.0,2.10635811]
[1720016047456,0.01833667,60568.0,60554.0,1.04088664]
[1720016047656,0.2574,60566.0,60554.0,0.98134126]
[1720016048060,0.48093494,60565.0,60554.0,0.98134126]
[1720016048259,0.3137,60567.0,60554.0,1.10436281]
[1720016048476,0.1,60566.0,60554.0,0.98134126]
[1720016048880,0.01375329,60565.0,60554.0,0.98134126]
[1720016049077,0.1,60566.0,60554.0,0.98134126]
[1720016049480,0.258,60558.0,60554.0,0.30878544]
[1720016049682,0.258,60558.0,60554.0,0.013]
[1720016049683,0.3046,60556.0,60554.0,0.013]
[1720016049863,0.01443115,60555.0,60554.0,0.19773587]
[1720016050077,0.11443115,60555.0,60554.0,0.3120881]
[1720016050277,0.01443115,60555.0,60554.0,0.43726038]
[1720016050485,0.01443115,60555.0,60554.0,0.76856038]
[1720016050690,0.2534,60565.0,60564.0,0.03]
[1720016050691,0.09095545,60565.0,60564.0,0.03]
[1720016050927,0.15473515,60565.0,60564.0,0.13548664]
[1720016051131,0.08278145,60565.0,60564.0,0.13548664]
[1720016051537,0.08148899,60565.0,60564.0,0.13548664]
[1720016052350,0.08848899,60565.0,60564.0,0.13648664]
[1720016052562,0.01900175,60565.0,60564.0,0.13548664]
[1720016052730,0.08141041,60565.0,60564.0,0.13548664]
[1720016052928,0.08141041,60565.0,60564.0,0.001]
[1720016052929,0.06840866,60565.0,60564.0,0.001]
[1720016053328,0.63290866,60565.0,60564.0,0.001]
[1720016053531,0.73290866,60565.0,60564.0,0.001]